lending/lending_fUSD_20241115
["ID","MTS","AMOUNT","RATE_DAILY","PERIOD"]
[342310233,1731700284646,-500.0,9.785e-05,2]
[342310234,1731700284655,-701.87,9.785e-05,2]
[342310235,1731700284666,-701.87,9.785e-05,2]
[342310236,1731700284676,-701.87,9.785e-05,2]
[342310237,1731700284686,-1040.2,9.785e-05,2]
[342310238,1731700284695,-1040.2,9.785e-05,2]
[342310239,1731700284705,-1040.2,9.785e-05,2]
[342310240,1731700284714,-1040.2,9.785e-05,2]
[342310241,1731700284724,-2987.83,9.785e-05,2]
[342310242,1731700284734,-500.0,9.785e-05,2]
[342310243,1731700284743,-2987.83,9.785e-05,2]
[342310244,1731700284753,-500.0,9.785e-05,2]
[342310245,1731700284763,-2987.83,9.785e-05,2]
[342310246,1731700284772,-500.0,9.785e-05,2]
[342310247,1731700284785,-2987.83,9.785e-05,2]
[342310248,1731700284794,-500.0,9.785e-05,2]
[342310249,1731700284803,-2987.83,9.785e-05,2]
[342310250,1731700284812,-500.0,9.785e-05,2]
[342310251,1731700284822,-500.0,9.785e-05,2]
[342310252,1731700284832,-500.0,9.785e-05,2]
[342310253,1731700284841,-500.0,9.785e-05,2]
[342310254,1731700284851,-583.21,9.785e-05,2]
[342310255,1731700284862,-500.0,9.785e-05,2]
[342310256,1731700284871,-583.21,9.785e-05,2]
[342310257,1731700284881,-500.0,9.785e-05,2]
[342310258,1731700284890,-583.21,9.785e-05,2]
[342310259,1731700284902,-571.08865009,9.785e-05,2]
[342310260,1731700284912,-583.21,9.785e-05,2]
[342310261,1731700284922,-500.0,9.785e-05,2]
[342310262,1731700284931,-583.21,9.785e-05,2]
[342310263,1731700284941,-500.0,9.785e-05,2]
[342310264,1731700284951,-1088.2,9.785e-05,2]
[342310265,1731700284960,-500.0,9.785e-05,2]
[342310266,1731700284969,-1088.2,9.785e-05,2]
[342310267,1731700284978,-182.97123604,9.785e-05,2]
[342310268,1731700285273,-1088.2,9.785e-05,2]
[342310269,1731700285282,-1088.2,9.785e-05,2]
[342310270,1731700285292,-1188.19,9.785e-05,2]
[342310271,1731700285301,-1188.19,9.785e-05,2]
[342310272,1731700285310,-1188.19,9.785e-05,2]
[342310273,1731700285319,-500.0,9.785e-05,2]
[342310274,1731700285329,-500.0,9.785e-05,2]
[342310275,1731700285339,-500.0,9.785e-05,2]
[342310276,1731700285348,-500.0,9.785e-05,2]
[342310277,1731700285358,-500.0,9.785e-05,2]
[342310278,1731700285368,-668.61,9.785e-05,2]
[342310279,1731700285377,-500.0,9.785e-05,2]
[342310280,1731700285387,-668.61,9.785e-05,2]
[342310281,1731700285399,-500.0,9.785e-05,2]
[342310282,1731700285409,-668.61,9.785e-05,2]
[342310283,1731700285418,-500.0,9.785e-05,2]
[342310284,1731700285428,-668.61,9.785e-05,2]
[342310285,1731700285438,-500.0,9.785e-05,2]
[342310286,1731700285448,-500.0,9.785e-05,2]
[342310287,1731700285458,-500.0,9.785e-05,2]
[342310288,1731700285468,-500.0,9.785e-05,2]
[342310289,1731700285478,-457.88487693,9.785e-05,2]
[342310290,1731700285487,-500.0,9.785e-05,2]
[342310291,1731700285497,-500.0,9.785e-05,2]
[342310292,1731700285507,-500.0,9.785e-05,2]
[342310293,1731700285517,-500.0,9.785e-05,2]
[342310294,1731700285527,-500.0,9.785e-05,2]
[342310295,1731700285537,-500.0,9.785e-05,2]
[342310296,1731700285547,-500.0,9.785e-05,2]
[342310297,1731700285557,-500.0,9.785e-05,2]
[342310298,1731700285567,-500.0,9.785e-05,2]
[342310299,1731700285578,-500.0,9.785e-05,2]
[342310300,1731700285587,-500.0,9.785e-05,2]
[342310301,1731700285597,-500.0,9.785e-05,2]
[342310302,1731700285607,-219.44,9.785e-05,2]
[342310303,1731700285616,-500.0,9.785e-05,2]
[342310304,1731700285625,-1219.34,9.785e-05,2]
[342310305,1731700285635,-500.0,9.785e-05,2]
[342310306,1731700285647,-500.0,9.785e-05,2]
[342310307,1731700285656,-1219.34,9.785e-05,2]
[342310308,1731700285666,-500.0,9.785e-05,2]
[342310309,1731700285675,-1219.34,9.785e-05,2]
[342310310,1731700285684,-500.0,9.785e-05,2]
[342310311,1731700285693,-548.7,9.785e-05,2]
[342310312,1731700285703,-170.37927482,9.785e-05,2]
[342310313,1731700285712,-1219.34,9.785e-05,2]
[342310314,1731700285722,-500.0,9.785e-05,2]
[342310315,1731700285731,-548.7,9.785e-05,2]
[342310316,1731700285740,-542.76462384,9.785e-05,2]
[342310317,1731700286251,-676.57537616,9.785e-05,2]
[342310318,1731700286262,-500.0,9.785e-05,2]
[342310319,1731700286271,-417.87216495,9.785e-05,2]
[342310320,1731700286283,-130.82783505,9.785e-05,2]
[342310321,1731700286293,-500.0,9.785e-05,2]
[342310322,1731700286303,-33.58528689,9.785e-05,2]
[342310323,1731700286315,-515.11471311,9.785e-05,2]
[342310324,1731700286325,-500.0,9.785e-05,2]
[342310325,1731700286334,-548.7,9.785e-05,2]
[342310326,1731700286344,-1268.79539536,9.785e-05,2]
[342310327,1731700505709,250.0,8.483e-05,2]
[342310328,1731700517309,250.0,8.483e-05,2]
[342310329,1731700574677,998.7,8.219e-05,2]
[342310330,1731700642790,23900.0,8.448e-05,2]
[342310331,1731700658931,155.20086372,8.406e-05,2]
[342310332,1731700893619,1119.53,8.46e-05,2]
[342310333,1731701005173,500.0,0.00024976,120]
[342310335,1731701048987,1000.0,0.00024976,120]
[342310336,1731701049809,3021.27,8.483e-05,2]
[342310337,1731701115577,1048.39,8.456e-05,2]
[342310338,1731701193170,250.0,8.476e-05,2]
[342310339,1731701205123,1500.0,8.476e-05,2]
[342310340,1731701261568,1000.0,8.475e-05,2]
[342310341,1731701339872,948.76,8.219e-05,2]
[342310350,1731701379908,308.64,8.496e-05,2]
[342310356,1731701431767,-314.74,8.507e-05,2]
[342310357,1731701431779,-491.36,8.517e-05,2]
[342310358,1731701431790,-176.54,8.576e-05,2]
[342310359,1731701431801,-250.0,8.733e-05,2]
[342310360,1731701431812,-165.4,8.738e-05,2]
[342310361,1731701431822,-163.12,8.841e-05,2]
[342310362,1731701431833,-1565.41815329,8.848e-05,2]
[342310363,1731701431865,-754.73572568,8.848e-05,2]
[342310364,1731701431878,-2768.64456434,8.848e-05,2]
[342310365,1731701431888,-163.12,8.848e-05,2]
[342310366,1731701431898,-163.12,8.856e-05,2]
[342310367,1731701431908,-5088.79844329,8.856e-05,2]
[342310368,1731701431918,-163.12,8.863e-05,2]
[342310369,1731701431927,-163.12,8.87e-05,2]
[342310370,1731701431937,-163.12,8.878e-05,2]
[342310371,1731701431947,-163.12,8.885e-05,2]
[342310372,1731701431957,-250.64423002,9.348e-05,2]
[342310373,1731701431969,-300.0,9.348e-05,2]
[342310374,1731701431986,-212.50576998,9.348e-05,2]
[342310375,1731701431995,-150.0,9.523e-05,2]
[342310376,1731701432005,-313.24087013,9.535e-05,2]
[342310377,1731701434333,-686.75912987,9.535e-05,2]
[342310378,1731701434345,-308.64,9.558e-05,2]
[342310379,1731701434355,-267.2594,9.57e-05,2]
[342310380,1731701434365,-2441.6983,9.57e-05,2]
[342310381,1731701434377,-491.36,9.581e-05,2]
[342310382,1731701434388,-675.0,9.586e-05,2]
[342310383,1731701434398,-200.0,9.6e-05,2]
[342310384,1731701434409,-150.0,9.601e-05,2]
[342310385,1731701434419,-150.0,9.62e-05,2]
[342310386,1731701434430,-150.0,9.629e-05,2]
[342310387,1731701434441,-150.0,9.629e-05,2]
[342310388,1731701434451,-9057.05,9.658e-05,6]
[342310389,1731701434463,-165.73,9.665e-05,2]
[342310390,1731701434474,-299.99,9.67e-05,2]
[342310391,1731701434484,-20496.7493,9.681e-05,2]
[342310392,1731701434495,-5000.0,9.681e-05,2]
[342310393,1731701434506,-500.0,9.682e-05,2]
[342310394,1731701434517,-500.0,9.682e-05,2]
[342310395,1731701434528,-500.0,9.682e-05,2]
[342310396,1731701434539,-500.0,9.682e-05,2]
[342310398,1731701434550,-500.0,9.682e-05,2]
[342310400,1731701434562,-500.0,9.683e-05,2]
[342310402,1731701434572,-500.0,9.683e-05,2]
[342310403,1731701434583,-500.0,9.683e-05,2]
[342310404,1731701434596,-500.0,9.683e-05,2]
[342310406,1731701434607,-536.44,9.683e-05,2]
[342310408,1731701434617,-500.0,9.683e-05,2]
[342310409,1731701434628,-500.0,9.683e-05,2]
[342310410,1731701434638,-924.21,9.683e-05,2]
[342310411,1731701434649,-500.0,9.683e-05,2]
[342310413,1731701434661,-588.75,9.683e-05,2]
[342310414,1731701434671,-500.0,9.683e-05,2]
[342310415,1731701434682,-695.66,9.683e-05,2]
[342310416,1731701434693,-500.0,9.683e-05,2]
[342310417,1731701434704,-500.0,9.683e-05,2]
[342310418,1731701434714,-500.0,9.683e-05,2]
[342310419,1731701434725,-500.0,9.683e-05,2]
[342310420,1731701434735,-1120.17,9.683e-05,2]
[342310421,1731701434745,-500.0,9.683e-05,2]
[342310422,1731701434756,-500.0,9.683e-05,2]
[342310423,1731701434767,-500.0,9.683e-05,2]
[342310424,1731701434776,-500.0,9.683e-05,2]
[342310425,1731701434788,-340.36542249,9.683e-05,2]
[342310426,1731701434798,-983.64,9.683e-05,2]
[342310427,1731701434808,-645.8,9.683e-05,2]
[342310428,1731701434818,-637.57,9.683e-05,2]
[342310429,1731701434829,-500.0,9.683e-05,2]
[342310430,1731701434840,-564.86,9.683e-05,2]
[342310431,1731701434854,-574.94,9.683e-05,2]
[342310432,1731701434865,-150.0,9.683e-05,2]
[342310433,1731701434876,-642.04,9.683e-05,2]
[342310465,1731701435461,-500.0,9.683e-05,2]
[342310466,1731701435483,-624.69,9.683e-05,2]
[342310467,1731701435509,-2052.74,9.683e-05,2]
[342310468,1731701435529,-500.0,9.683e-05,2]
[342310469,1731701435538,-1813.66,9.683e-05,2]
[342310470,1731701435547,-500.0,9.683e-05,2]
[342310471,1731701435557,-500.0,9.683e-05,2]
[342310472,1731701435566,-500.0,9.683e-05,2]
[342310473,1731701435575,-436.94284493,9.683e-05,2]
[342310474,1731701435585,-1336.47,9.683e-05,2]
[342310475,1731701435599,-790.79,9.683e-05,2]
[342310476,1731701435613,-2514.82,9.683e-05,2]
[342310477,1731701435623,-1326.76,9.683e-05,2]
[342310478,1731701435632,-770.81,9.683e-05,2]
[342310479,1731701435641,-500.0,9.683e-05,2]
[342310480,1731701435651,-2149.91,9.683e-05,2]
[342310481,1731701435661,-903.44,9.683e-05,2]
[342310482,1731701435670,-1340.17,9.683e-05,2]
[342310483,1731701435679,-2466.91,9.683e-05,2]
[342310484,1731701435689,-150.0,9.694e-05,2]
[342310485,1731701435698,-5052.0,9.7e-05,2]
[342310486,1731701435707,-150.0,9.705e-05,2]
[342310487,1731701435717,-500.0,9.772e-05,2]
[342310488,1731701435727,-500.0,9.772e-05,2]
[342310489,1731701435737,-500.0,9.772e-05,2]
[342310490,1731701435746,-500.0,9.772e-05,2]
[342310491,1731701435758,-500.0,9.772e-05,2]
[342310492,1731701435768,-696.76,9.772e-05,2]
[342310493,1731701435778,-500.0,9.772e-05,2]
[342310494,1731701435787,-500.0,9.772e-05,2]
[342310495,1731701435797,-500.0,9.772e-05,2]
[342310496,1731701435806,-500.0,9.772e-05,2]
[342310497,1731701435815,-500.0,9.772e-05,2]
[342310498,1731701435825,-500.0,9.772e-05,2]
[342310499,1731701435834,-550.98,9.772e-05,2]
[342310500,1731701435846,-500.0,9.772e-05,2]
[342310501,1731701435856,-500.0,9.772e-05,2]
[342310502,1731701435865,-500.0,9.772e-05,2]
[342310503,1731701435875,-547.19,9.772e-05,2]
[342310504,1731701435884,-500.0,9.772e-05,2]
[342310505,1731701435893,-500.0,9.772e-05,2]
[342310506,1731701435902,-500.0,9.772e-05,2]
[342310507,1731701435912,-500.0,9.772e-05,2]
[342310508,1731701435921,-500.0,9.772e-05,2]
[342310509,1731701435930,-500.0,9.772e-05,2]
[342310510,1731701435939,-500.0,9.772e-05,2]
[342310511,1731701435949,-500.0,9.772e-05,2]
[342310512,1731701435958,-500.0,9.772e-05,2]
[342310513,1731701435968,-500.0,9.772e-05,2]
[342310514,1731701435977,-500.0,9.772e-05,2]
[342310515,1731701435986,-602.66,9.772e-05,2]
[342310516,1731701435995,-567.51,9.772e-05,2]
[342310517,1731701436005,-500.0,9.772e-05,2]
[342310518,1731701436014,-500.0,9.772e-05,2]
[342310519,1731701436023,-500.0,9.772e-05,2]
[342310520,1731701436031,-524.12,9.772e-05,2]
[342310521,1731701436040,-500.0,9.772e-05,2]
[342310522,1731701436049,-500.0,9.772e-05,2]
[342310523,1731701436059,-500.0,9.772e-05,2]
[342310524,1731701436069,-500.0,9.772e-05,2]
[342310525,1731701436079,-500.0,9.772e-05,2]
[342310526,1731701436088,-500.0,9.772e-05,2]
[342310527,1731701436102,-500.0,9.772e-05,2]
[342310528,1731701436112,-500.0,9.772e-05,2]
[342310529,1731701436122,-500.0,9.772e-05,2]
[342310530,1731701436136,-500.0,9.772e-05,2]
[342310531,1731701436145,-678.79,9.772e-05,2]
[342310532,1731701436154,-500.0,9.772e-05,2]
[342310533,1731701436165,-686.39,9.772e-05,2]
[342310534,1731701436174,-500.0,9.772e-05,2]
[342310535,1731701436184,-500.0,9.772e-05,2]
[342310536,1731701436194,-500.0,9.772e-05,2]
[342310537,1731701436203,-500.0,9.772e-05,2]
[342310538,1731701436215,-500.0,9.772e-05,2]
[342310539,1731701436225,-500.0,9.772e-05,2]
[342310540,1731701436235,-796.49,9.772e-05,2]
[342310541,1731701436244,-1110.32,9.772e-05,2]
[342310542,1731701436254,-500.0,9.772e-05,2]
[342310543,1731701436263,-500.0,9.772e-05,2]
[342310544,1731701436272,-1309.31,9.772e-05,2]
[342310545,1731701436282,-500.0,9.772e-05,2]
[342310546,1731701436292,-786.31,9.772e-05,2]
[342310547,1731701436301,-552.75,9.772e-05,2]
[342310548,1731701436310,-759.33,9.772e-05,2]
[342310549,1731701436319,-500.0,9.772e-05,2]
[342310550,1731701436329,-500.0,9.772e-05,2]
[342310551,1731701436338,-532.93,9.772e-05,2]
[342310552,1731701436353,-500.0,9.772e-05,2]
[342310553,1731701436362,-500.0,9.772e-05,2]
[342310554,1731701436371,-500.0,9.772e-05,2]
[342310555,1731701436381,-500.0,9.772e-05,2]
[342310556,1731701436391,-500.0,9.772e-05,2]
[342310557,1731701436400,-500.0,9.772e-05,2]
[342310558,1731701436409,-1265.8,9.772e-05,2]
[342310559,1731701436419,-500.0,9.772e-05,2]
[342310560,1731701436428,-656.91,9.772e-05,2]
[342310561,1731701436436,-500.0,9.772e-05,2]
[342310562,1731701436446,-2192.86,9.772e-05,2]
[342310563,1731701436455,-500.0,9.772e-05,2]
[342310564,1731701436465,-500.0,9.772e-05,2]
[342310565,1731701436475,-500.0,9.772e-05,2]
[342310566,1731701436484,-500.0,9.772e-05,2]
[342310567,1731701436494,-867.44,9.772e-05,2]
[342310568,1731701436504,-500.0,9.772e-05,2]
[342310569,1731701436513,-500.0,9.772e-05,2]
[342310570,1731701436522,-500.0,9.772e-05,2]
[342310571,1731701436531,-838.7,9.772e-05,7]
[342310572,1731701436540,-500.0,9.772e-05,2]
[342310573,1731701436548,-500.0,9.772e-05,2]
[342310574,1731701436557,-500.0,9.772e-05,2]
[342310575,1731701436567,-609.43,9.772e-05,2]
[342310576,1731701436576,-500.0,9.772e-05,2]
[342310577,1731701436586,-500.0,9.772e-05,2]
[342310578,1731701436599,-500.0,9.772e-05,2]
[342310579,1731701436608,-500.0,9.772e-05,2]
[342310580,1731701436618,-500.0,9.772e-05,2]
[342310581,1731701436627,-500.0,9.772e-05,2]
[342310582,1731701436636,-500.0,9.772e-05,2]
[342310583,1731701436646,-438.96282915,9.772e-05,2]
[342310584,1731701436655,-953.97,9.772e-05,2]
[342310585,1731701436664,-500.0,9.772e-05,2]
[342310586,1731701436674,-758.68,9.772e-05,2]
[342310587,1731701436684,-527.2,9.772e-05,2]
[342310588,1731701436692,-752.8,9.772e-05,2]
[342310589,1731701436701,-500.0,9.772e-05,2]
[342310590,1731701436711,-500.0,9.772e-05,2]
[342310591,1731701436720,-690.09,9.772e-05,2]
[342310592,1731701436730,-500.0,9.772e-05,2]
[342310593,1731701436739,-500.0,9.772e-05,2]
[342310594,1731701436749,-500.0,9.772e-05,2]
[342310595,1731701436758,-500.0,9.772e-05,2]
[342310596,1731701436768,-1688.78,9.772e-05,2]
[342310597,1731701436778,-841.64,9.772e-05,2]
[342310598,1731701436787,-500.0,9.772e-05,2]
[342310599,1731701436797,-500.0,9.772e-05,2]
[342310600,1731701436807,-608.84139975,9.772e-05,2]
[342310601,1731701436817,-500.0,9.772e-05,2]
[342310602,1731701436826,-500.0,9.772e-05,2]
[342310603,1731701436835,-1395.7,9.772e-05,2]
[342310604,1731701436848,-500.0,9.772e-05,2]
[342310605,1731701436858,-500.0,9.772e-05,2]
[342310606,1731701436867,-500.0,9.772e-05,2]
[342310607,1731701436877,-2392.5,9.772e-05,2]
[342310608,1731701436886,-500.0,9.772e-05,2]
[342310609,1731701436896,-500.0,9.772e-05,2]
[342310610,1731701436906,-736.81,9.772e-05,2]
[342310611,1731701436915,-500.0,9.772e-05,2]
[342310612,1731701436925,-500.0,9.772e-05,2]
[342310613,1731701436934,-1097.72,9.772e-05,2]
[342310614,1731701436944,-500.0,9.772e-05,2]
[342310615,1731701436953,-1711.34,9.772e-05,2]
[342310616,1731701436963,-836.58,9.772e-05,2]
[342310617,1731701436971,-500.0,9.772e-05,2]
[342310618,1731701436982,-500.0,9.772e-05,2]
[342310619,1731701436991,-500.0,9.772e-05,2]
[342310620,1731701437000,-500.0,9.772e-05,2]
[342310621,1731701437010,-1351.11,9.772e-05,2]
[342310622,1731701437019,-718.22,9.772e-05,2]
[342310623,1731701437028,-500.0,9.772e-05,2]
[342310624,1731701437037,-708.47,9.772e-05,2]
[342310625,1731701437046,-500.0,9.772e-05,2]
[342310626,1731701437055,-500.0,9.772e-05,2]
[342310627,1731701437064,-500.0,9.772e-05,2]
[342310628,1731701437074,-556.43,9.772e-05,2]
[342310629,1731701437083,-1439.31,9.772e-05,2]
[342310630,1731701437092,-500.0,9.772e-05,2]
[342310631,1731701437104,-1649.21,9.772e-05,2]
[342310632,1731701437114,-500.0,9.772e-05,2]
[342310633,1731701437124,-537.58,9.772e-05,2]
[342310634,1731701437138,-500.0,9.772e-05,2]
[342310635,1731701437147,-500.0,9.772e-05,2]
[342310636,1731701437157,-500.0,9.772e-05,2]
[342310637,1731701437167,-793.55,9.772e-05,2]
[342310638,1731701437176,-500.0,9.772e-05,2]
[342310639,1731701437185,-500.0,9.772e-05,2]
[342310640,1731701437195,-500.0,9.772e-05,2]
[342310641,1731701437205,-500.0,9.772e-05,2]
[342310642,1731701437215,-500.0,9.772e-05,2]
[342310643,1731701437226,-830.49,9.772e-05,2]
[342310644,1731701437236,-500.0,9.772e-05,2]
[342310645,1731701437246,-500.0,9.772e-05,2]
[342310646,1731701437256,-500.0,9.772e-05,2]
[342310647,1731701437266,-500.0,9.772e-05,2]
[342310648,1731701437275,-500.0,9.772e-05,2]
[342310649,1731701437284,-500.0,9.772e-05,2]
[342310650,1731701437294,-500.0,9.772e-05,2]
[342310651,1731701437303,-1351.02,9.772e-05,2]
[342310652,1731701437313,-741.44,9.772e-05,2]
[342310653,1731701437322,-500.0,9.772e-05,2]
[342310654,1731701437331,-955.8,9.772e-05,2]
[342310655,1731701437340,-500.0,9.772e-05,2]
[342310656,1731701437353,-760.56,9.772e-05,2]
[342310657,1731701437362,-507.54,9.772e-05,2]
[342310658,1731701437371,-670.32,9.772e-05,2]
[342310659,1731701437381,-535.87,9.772e-05,2]
[342310660,1731701437391,-617.08,9.772e-05,2]
[342310661,1731701437400,-1142.75,9.772e-05,2]
[342310662,1731701437409,-800.44,9.772e-05,2]
[342310663,1731701437418,-870.73,9.772e-05,2]
[342310664,1731701437427,-500.0,9.772e-05,2]
[342310665,1731701437436,-500.0,9.772e-05,2]
[342310666,1731701437446,-1577.49,9.772e-05,2]
[342310667,1731701437455,-500.0,9.772e-05,2]
[342310668,1731701437464,-818.98,9.772e-05,2]
[342310669,1731701437473,-620.09,9.772e-05,2]
[342310670,1731701437483,-500.0,9.772e-05,2]
[342310671,1731701437492,-500.0,9.772e-05,2]
[342310672,1731701437501,-1298.84,9.772e-05,2]
[342310673,1731701437511,-1138.34,9.772e-05,2]
[342310674,1731701437520,-640.85,9.772e-05,2]
[342310675,1731701437529,-902.47,9.772e-05,2]
[342310676,1731701437539,-1028.06,9.772e-05,2]
[342310677,1731701437549,-679.79,9.772e-05,2]
[342310678,1731701437558,-631.17,9.772e-05,2]
[342310679,1731701437567,-500.0,9.772e-05,2]
[342310680,1731701437577,-500.0,9.772e-05,2]
[342310681,1731701437586,-926.14,9.772e-05,2]
[342310683,1731701437597,-665.05,9.772e-05,2]
[342310684,1731701437607,-500.0,9.772e-05,2]
[342310685,1731701437616,-500.0,9.772e-05,2]
[342310686,1731701437625,-500.0,9.772e-05,2]
[342310687,1731701437635,-500.0,9.772e-05,2]
[342310688,1731701437644,-500.0,9.772e-05,2]
[342310689,1731701437653,-579.09,9.772e-05,2]
[342310690,1731701437663,-985.43,9.772e-05,2]
[342310691,1731701437673,-673.23,9.772e-05,2]
[342310692,1731701437683,-1411.73,9.772e-05,2]
[342310693,1731701437692,-993.4463901,9.778e-05,2]
[342310694,1731701437701,-2063.1375067,9.778e-05,2]
[342310695,1731701437710,-714.84246845,9.778e-05,2]
[342310696,1731701437720,-561.24,9.779e-05,2]
[342310697,1731701437730,-500.0,9.779e-05,2]
[342310698,1731701437739,-2829.25,9.779e-05,2]
[342310699,1731701437749,-755.28,9.779e-05,2]
[342310700,1731701437758,-3083.57,9.779e-05,2]
[342310701,1731701437766,-500.0,9.779e-05,2]
[342310702,1731701437775,-500.0,9.779e-05,2]
[342310703,1731701437784,-940.93,9.779e-05,2]
[342310704,1731701437794,-500.0,9.779e-05,2]
[342310705,1731701437803,-500.0,9.779e-05,2]
[342310706,1731701437813,-500.0,9.779e-05,2]
[342310707,1731701437822,-4232.77,9.779e-05,2]
[342310708,1731701437831,-500.0,9.779e-05,2]
[342310709,1731701437840,-500.0,9.779e-05,2]
[342310710,1731701437852,-500.0,9.779e-05,2]
[342310711,1731701437861,-1543.34,9.779e-05,2]
[342310712,1731701437871,-1289.99,9.779e-05,2]
[342310713,1731701437880,-103000.999999,9.78e-05,2]
[342310714,1731701437888,-500.0,9.78e-05,2]
[342310715,1731701437897,-500.0,9.78e-05,2]
[342310716,1731701437907,-500.0,9.78e-05,2]
[342310717,1731701437917,-500.0,9.78e-05,2]
[342310718,1731701437927,-500.0,9.78e-05,2]
[342310719,1731701437936,-500.0,9.78e-05,2]
[342310720,1731701437945,-500.0,9.78e-05,2]
[342310721,1731701437955,-500.0,9.78e-05,2]
[342310722,1731701437964,-500.0,9.78e-05,2]
[342310723,1731701437974,-516.86,9.78e-05,2]
[342310724,1731701437983,-1453.67,9.78e-05,2]
[342310725,1731701437992,-4364.91,9.78e-05,2]
[342310726,1731701438001,-1518.0,9.78e-05,2]
[342310727,1731701438011,-500.0,9.78e-05,2]
[342310728,1731701438020,-500.0,9.78e-05,2]
[342310729,1731701438030,-990.82,9.78e-05,2]
[342310730,1731701438039,-1329.44,9.78e-05,2]
[342310731,1731701438048,-500.0,9.78e-05,2]
[342310732,1731701438057,-2544.34,9.78e-05,2]
[342310733,1731701438067,-561.24,9.78e-05,2]
[342310734,1731701438076,-500.0,9.78e-05,2]
[342310735,1731701438085,-907.1,9.78e-05,2]
[342310736,1731701438095,-500.0,9.78e-05,2]
[342310737,1731701438104,-2829.25,9.78e-05,2]
[342310738,1731701438114,-755.28,9.78e-05,2]
[342310739,1731701438127,-500.0,9.78e-05,2]
[342310740,1731701438139,-500.0,9.78e-05,2]
[342310741,1731701438148,-3083.57,9.78e-05,2]
[342310742,1731701438157,-500.0,9.78e-05,2]
[342310743,1731701438167,-863.63,9.78e-05,2]
[342310744,1731701438177,-500.0,9.78e-05,2]
[342310745,1731701438187,-500.0,9.78e-05,2]
[342310746,1731701438196,-500.0,9.78e-05,2]
[342310747,1731701438205,-940.93,9.78e-05,2]
[342310748,1731701438215,-500.0,9.78e-05,2]
[342310749,1731701438224,-500.0,9.78e-05,2]
[342310750,1731701438233,-500.0,9.78e-05,2]
[342310751,1731701438243,-500.0,9.78e-05,2]
[342310753,1731701438253,-398.45,9.78e-05,2]
[342310755,1731701438262,-769.45,9.78e-05,2]
[342310757,1731701438271,-500.0,9.78e-05,2]
[342310759,1731701438279,-1110.74,9.78e-05,2]
[342310761,1731701438288,-500.0,9.78e-05,2]
[342310763,1731701438298,-4232.77,9.78e-05,2]
[342310765,1731701438307,-500.0,9.78e-05,2]
[342310767,1731701438316,-636.29,9.78e-05,2]
[342310769,1731701438326,-500.0,9.78e-05,2]
[342310771,1731701438335,-500.0,9.78e-05,2]
[342310774,1731701438345,-500.0,9.78e-05,2]
[342310776,1731701438358,-1543.34,9.78e-05,2]
[342310779,1731701438368,-1289.99,9.78e-05,2]
[342310781,1731701438378,-500.0,9.78e-05,2]
[342310783,1731701438388,-500.0,9.78e-05,2]
[342310785,1731701438397,-500.0,9.781e-05,2]
[342310787,1731701438407,-500.0,9.781e-05,2]
[342310789,1731701438416,-500.0,9.781e-05,2]
[342310791,1731701438425,-500.0,9.781e-05,2]
[342310793,1731701438434,-500.5433419,9.781e-05,2]
[342310795,1731701438442,-599.35,9.781e-05,2]
[342310797,1731701438451,-500.0,9.781e-05,2]
[342310799,1731701438460,-500.0,9.781e-05,2]
[342310801,1731701438469,-500.0,9.781e-05,2]
[342310803,1731701438479,-500.0,9.781e-05,2]
[342310804,1731701438488,-500.0,9.781e-05,2]
[342310806,1731701438497,-500.0,9.781e-05,2]
[342310808,1731701438506,-500.0,9.781e-05,2]
[342310810,1731701438515,-500.0,9.781e-05,2]
[342310811,1731701438524,-804.32,9.781e-05,2]
[342310813,1731701438533,-500.0,9.781e-05,2]
[342310815,1731701438542,-500.0,9.781e-05,2]
[342310817,1731701438551,-500.0,9.781e-05,2]